[Event "Live Chess"]
[Site "Chess.com"]
[Date "2023.05.20"]
[Round "-"]
[White "BMT6"]
[Black "Garyaaa"]
[Result "0-1"]
[WhiteElo "592"]
[BlackElo "969"]
[TimeControl "300"]
[EndTime "9:19:53 PDT"]
[Termination "Garyaaa won by checkmate"]

1. e4 {[%clk 0:04:58.9]} 1... c6 {[%clk 0:04:55.3]} 2. d4 {[%clk 0:04:56.8]}
2... d5 {[%clk 0:04:53.2]} 3. e5 {[%clk 0:04:55.5]} 3... c5 {[%clk 0:04:51.1]}
4. Nf3 {[%clk 0:04:51.8]} 4... cxd4 {[%clk 0:04:43.1]} 5. Nxd4 {[%clk
0:04:50.9]} 5... Nc6 {[%clk 0:04:41.3]} 6. Nxc6 {[%clk 0:04:49.5]} 6... bxc6
{[%clk 0:04:39.7]} 7. Bd3 {[%clk 0:04:41.1]} 7... e6 {[%clk 0:04:34.1]} 8. Nc3
{[%clk 0:04:40]} 8... f6 {[%clk 0:04:29.9]} 9. Qe2 {[%clk 0:04:34]} 9... fxe5
{[%clk 0:04:22.5]} 10. Ba6 {[%clk 0:04:31.7]} 10... Bxa6 {[%clk 0:04:14.1]} 11.
Qxa6 {[%clk 0:04:30.3]} 11... Qc7 {[%clk 0:04:11.7]} 12. Na4 {[%clk 0:04:20.9]}
12... Nf6 {[%clk 0:04:08.7]} 13. Nc5 {[%clk 0:04:19]} 13... Bxc5 {[%clk
0:04:03.7]} 14. O-O {[%clk 0:04:13.9]} 14... O-O {[%clk 0:04:00.1]} 15. Re1
{[%clk 0:04:10.8]} 15... e4 {[%clk 0:03:55.3]} 16. g3 {[%clk 0:04:03.7]} 16...
Ng4 {[%clk 0:03:53.4]} 17. Bf4 {[%clk 0:04:01.9]} 17... Qd7 {[%clk 0:03:42.6]}
18. h3 {[%clk 0:03:38.5]} 18... Bxf2+ {[%clk 0:03:40.9]} 19. Kg2 {[%clk
0:03:32.3]} 19... Bxe1 {[%clk 0:03:38.2]} 20. Rxe1 {[%clk 0:03:31.3]} 20... Nf6
{[%clk 0:03:36.2]} 21. Rd1 {[%clk 0:03:17.8]} 21... Qc8 {[%clk 0:03:34.1]} 22.
Qxc8 {[%clk 0:03:12.8]} 22... Rfxc8 {[%clk 0:03:31.1]} 23. b3 {[%clk 0:03:08.6]}
23... Nh5 {[%clk 0:03:29.7]} 24. Bd6 {[%clk 0:03:04.6]} 24... Rd8 {[%clk
0:03:26.3]} 25. Be5 {[%clk 0:02:59.1]} 25... Rf8 {[%clk 0:03:21.8]} 26. a4
{[%clk 0:02:55.5]} 26... Rf7 {[%clk 0:03:20]} 27. g4 {[%clk 0:02:52.6]} 27...
Nf6 {[%clk 0:03:14.5]} 28. Bxf6 {[%clk 0:02:49.7]} 28... Rxf6 {[%clk 0:03:12.8]}
29. h4 {[%clk 0:02:46.8]} 29... Raf8 {[%clk 0:03:11.4]} 30. g5 {[%clk
0:02:32.7]} 30... Rf2+ {[%clk 0:03:09.7]} 31. Kg1 {[%clk 0:02:30]} 31... Rxc2
{[%clk 0:03:07.6]} 32. b4 {[%clk 0:02:28.1]} 32... Rff2 {[%clk 0:03:06.1]} 33.
b5 {[%clk 0:02:16.8]} 33... cxb5 {[%clk 0:03:02.9]} 34. axb5 {[%clk 0:02:15.3]}
34... Rh2 {[%clk 0:02:59.9]} 35. Rb1 {[%clk 0:02:12.5]} 35... Rxh4 {[%clk
0:02:57]} 36. Kf1 {[%clk 0:02:08.2]} 36... Rh1# {[%clk 0:02:54.2]} 0-1

[Event "Live Chess"]
[Site "Chess.com"]
[Date "2023.05.20"]
[Round "-"]
[White "IanCalvert2"]
[Black "Pandreq"]
[Result "0-1"]
[WhiteElo "1551"]
[BlackElo "1272"]
[TimeControl "300"]
[EndTime "9:19:54 PDT"]
[Termination "Pandreq won by resignation"]

1. b3 {[%clk 0:04:57.2]} 1... Nf6 {[%clk 0:04:57.3]} 2. Bb2 {[%clk 0:04:55.8]}
2... Nc6 {[%clk 0:04:54.8]} 3. Nf3 {[%clk 0:04:52.6]} 3... d6 {[%clk 0:04:50]}
4. d4 {[%clk 0:04:50]} 4... Bf5 {[%clk 0:04:43.5]} 5. d5 {[%clk 0:04:25.9]} 5...
Nb4 {[%clk 0:04:38.7]} 6. Nd4 {[%clk 0:04:22.9]} 6... Bg6 {[%clk 0:04:11.9]} 7.
c4 {[%clk 0:04:20.8]} 7... c5 {[%clk 0:04:01.7]} 8. dxc6 {[%clk 0:04:16.6]} 8...
bxc6 {[%clk 0:03:56.7]} 9. a3 {[%clk 0:04:14.2]} 9... Na6 {[%clk 0:03:28.9]} 10.
Nxc6 {[%clk 0:04:05.1]} 10... Qb6 {[%clk 0:03:19.4]} 11. Nb4 {[%clk 0:03:56.2]}
11... Nc5 {[%clk 0:03:05]} 12. e3 {[%clk 0:03:18.4]} 12... a5 {[%clk 0:02:49.3]}
13. Nd5 {[%clk 0:03:13.5]} 13... Nxd5 {[%clk 0:02:39.6]} 14. cxd5 {[%clk
0:02:40.4]} 14... Qxb3 {[%clk 0:02:17.3]} 15. Qxb3 {[%clk 0:02:36]} 15... Nxb3
{[%clk 0:02:15.3]} 16. Bb5+ {[%clk 0:02:25.2]} 16... Kd8 {[%clk 0:02:07.2]} 17.
Ra2 {[%clk 0:02:22.9]} 17... Bxb1 {[%clk 0:01:59.7]} 0-1

[Event "Live Chess"]
[Site "Chess.com"]
[Date "2023.05.20"]
[Round "-"]
[White "Chris_pea"]
[Black "Krishtwist2013gmailc"]
[Result "1-0"]
[WhiteElo "615"]
[BlackElo "725"]
[TimeControl "300"]
[EndTime "9:19:54 PDT"]
[Termination "Chris_pea won by checkmate"]

1. e4 {[%clk 0:04:48.1]} 1... e5 {[%clk 0:04:58.6]} 2. Nf3 {[%clk 0:04:46.2]}
2... Nc6 {[%clk 0:04:56.4]} 3. Bb5 {[%clk 0:04:44.7]} 3... g6 {[%clk 0:04:55.2]}
4. Nc3 {[%clk 0:04:43.7]} 4... f5 {[%clk 0:04:54.4]} 5. d3 {[%clk 0:04:38.2]}
5... Bd6 {[%clk 0:04:52.9]} 6. O-O {[%clk 0:04:33.8]} 6... Nge7 {[%clk
0:04:51.8]} 7. Re1 {[%clk 0:04:27.3]} 7... f4 {[%clk 0:04:50.6]} 8. Nd5 {[%clk
0:04:21.3]} 8... Nxd5 {[%clk 0:04:49.1]} 9. exd5 {[%clk 0:04:19.7]} 9... Nd4
{[%clk 0:04:47.2]} 10. Ba4 {[%clk 0:04:12.1]} 10... Nxf3+ {[%clk 0:04:45.4]} 11.
Qxf3 {[%clk 0:04:09.7]} 11... O-O {[%clk 0:04:40.4]} 12. b3 {[%clk 0:03:53.2]}
12... Re8 {[%clk 0:04:32]} 13. Bb2 {[%clk 0:03:49.2]} 13... e4 {[%clk
0:04:28.3]} 14. Rxe4 {[%clk 0:03:42.4]} 14... Rxe4 {[%clk 0:04:25.8]} 15. Qxe4
{[%clk 0:03:40.7]} 15... b6 {[%clk 0:04:18.5]} 16. Qd4 {[%clk 0:03:39.5]} 16...
Ba6 {[%clk 0:04:13.4]} 17. Qg7# {[%clk 0:03:35.5]} 1-0

[Event "Live Chess"]
[Site "Chess.com"]
[Date "2023.05.20"]
[Round "-"]
[White "Jio85"]
[Black "RoaringKnights"]
[Result "1-0"]
[WhiteElo "2033"]
[BlackElo "918"]
[TimeControl "300"]
[EndTime "9:19:55 PDT"]
[Termination "Jio85 won by checkmate"]

1. e4 {[%clk 0:04:59]} 1... c6 {[%clk 0:04:56.8]} 2. d4 {[%clk 0:04:57.9]} 2...
d5 {[%clk 0:04:54.4]} 3. e5 {[%clk 0:04:57.4]} 3... Bf5 {[%clk 0:04:52.3]} 4.
Nf3 {[%clk 0:04:56.3]} 4... Nd7 {[%clk 0:04:50.5]} 5. Nc3 {[%clk 0:04:52.9]}
5... e6 {[%clk 0:04:49.6]} 6. Bf4 {[%clk 0:04:51.4]} 6... c5 {[%clk 0:04:48.6]}
7. Qd2 {[%clk 0:04:49.1]} 7... c4 {[%clk 0:04:47]} 8. Nb5 {[%clk 0:04:46.3]}
8... a5 {[%clk 0:04:27.9]} 9. b3 {[%clk 0:04:38.4]} 9... Bb4 {[%clk 0:04:21.2]}
10. c3 {[%clk 0:04:36.3]} 10... Be7 {[%clk 0:04:02.4]} 11. bxc4 {[%clk
0:04:31.7]} 11... dxc4 {[%clk 0:04:00.5]} 12. Bxc4 {[%clk 0:04:31.4]} 12... f6
{[%clk 0:03:49]} 13. a4 {[%clk 0:04:13.6]} 13... fxe5 {[%clk 0:03:41.2]} 14.
Bxe5 {[%clk 0:04:11.1]} 14... Bf6 {[%clk 0:03:37.6]} 15. Nd6+ {[%clk 0:04:08.3]}
15... Kf8 {[%clk 0:03:26.5]} 16. Nxb7 {[%clk 0:03:48.9]} 16... Qc8 {[%clk
0:03:13.5]} 17. Nd6 {[%clk 0:03:45.9]} 17... Qd8 {[%clk 0:03:02.4]} 18. Nxf5
{[%clk 0:03:39.1]} 18... exf5 {[%clk 0:02:51.7]} 19. Qf4 {[%clk 0:03:28.5]}
19... Qe8 {[%clk 0:02:46]} 20. O-O {[%clk 0:03:24]} 20... Nxe5 {[%clk
0:02:39.3]} 21. dxe5 {[%clk 0:03:20.8]} 21... Be7 {[%clk 0:02:35.5]} 22. Qxf5+
{[%clk 0:03:19.8]} 22... Nf6 {[%clk 0:02:32.7]} 23. exf6 {[%clk 0:03:18.5]}
23... Bxf6 {[%clk 0:02:30.9]} 24. Rfe1 {[%clk 0:03:11.5]} 24... Qc6 {[%clk
0:02:20]} 25. Ne5 {[%clk 0:03:04.4]} 25... Qc7 {[%clk 0:02:01.8]} 26. Nd7+
{[%clk 0:02:56.2]} 26... Qxd7 {[%clk 0:01:54.8]} 27. Qxd7 {[%clk 0:02:56.1]}
27... Rd8 {[%clk 0:01:47.8]} 28. Qf7# {[%clk 0:02:53.1]} 1-0

[Event "Live Chess"]
[Site "Chess.com"]
[Date "2023.05.20"]
[Round "-"]
[White "MaximKris"]
[Black "NAZRIZ1977"]
[Result "0-1"]
[WhiteElo "1790"]
[BlackElo "2147"]
[TimeControl "300"]
[EndTime "9:19:59 PDT"]
[Termination "NAZRIZ1977 won by checkmate"]

1. e4 {[%clk 0:04:58.7]} 1... c5 {[%clk 0:04:58.8]} 2. Nf3 {[%clk 0:04:58.1]}
2... d6 {[%clk 0:04:57.6]} 3. c3 {[%clk 0:04:56.6]} 3... Nf6 {[%clk 0:04:55.4]}
4. Bb5+ {[%clk 0:04:54.1]} 4... Bd7 {[%clk 0:04:54.1]} 5. Bxd7+ {[%clk
0:04:53.2]} 5... Qxd7 {[%clk 0:04:53.4]} 6. d3 {[%clk 0:04:49.7]} 6... Nc6
{[%clk 0:04:51.9]} 7. O-O {[%clk 0:04:49.1]} 7... e6 {[%clk 0:04:48.6]} 8. Re1
{[%clk 0:04:48.1]} 8... Be7 {[%clk 0:04:48.1]} 9. Bg5 {[%clk 0:04:47.7]} 9...
O-O {[%clk 0:04:47]} 10. Nbd2 {[%clk 0:04:47.2]} 10... a6 {[%clk 0:04:45.1]} 11.
e5 {[%clk 0:04:45.8]} 11... dxe5 {[%clk 0:04:43.9]} 12. Nxe5 {[%clk 0:04:45.4]}
12... Nxe5 {[%clk 0:04:43.1]} 13. Rxe5 {[%clk 0:04:45.3]} 13... Qc7 {[%clk
0:04:42.4]} 14. Bf4 {[%clk 0:04:42.4]} 14... Bd6 {[%clk 0:04:32.4]} 15. Nc4
{[%clk 0:04:36.3]} 15... Bxe5 {[%clk 0:04:30.2]} 16. Bxe5 {[%clk 0:04:36.2]}
16... Qd8 {[%clk 0:04:28.5]} 17. Qf3 {[%clk 0:04:33.3]} 17... b5 {[%clk
0:04:25.2]} 18. Bxf6 {[%clk 0:04:29.6]} 18... Qxf6 {[%clk 0:04:22.6]} 19. Qxf6
{[%clk 0:04:28]} 19... gxf6 {[%clk 0:04:21.7]} 20. Ne3 {[%clk 0:04:27.5]} 20...
Rfd8 {[%clk 0:04:19]} 21. Rd1 {[%clk 0:04:26.7]} 21... Rd7 {[%clk 0:04:17.4]}
22. Kf1 {[%clk 0:04:25.9]} 22... Rad8 {[%clk 0:04:16.5]} 23. Ke2 {[%clk
0:04:25.5]} 23... Kg7 {[%clk 0:04:14.4]} 24. c4 {[%clk 0:04:24.1]} 24... Kg6
{[%clk 0:04:11.7]} 25. b3 {[%clk 0:04:22.3]} 25... f5 {[%clk 0:04:10.6]} 26. a4
{[%clk 0:04:20.3]} 26... bxa4 {[%clk 0:04:09]} 27. bxa4 {[%clk 0:04:19.3]} 27...
Rb8 {[%clk 0:04:08.3]} 28. Rd2 {[%clk 0:04:17.5]} 28... Rdb7 {[%clk 0:04:06.1]}
29. d4 {[%clk 0:04:15.4]} 29... cxd4 {[%clk 0:04:01.2]} 30. Rxd4 {[%clk
0:04:15.3]} 30... Rb2+ {[%clk 0:04:00.3]} 31. Kf3 {[%clk 0:04:14.3]} 31... R2b4
{[%clk 0:03:53.4]} 32. Nc2 {[%clk 0:04:09]} 32... Rxa4 {[%clk 0:03:51.5]} 33. c5
{[%clk 0:04:08]} 33... Rxd4 {[%clk 0:03:50.2]} 34. Nxd4 {[%clk 0:04:07.9]} 34...
Rc8 {[%clk 0:03:47]} 35. c6 {[%clk 0:04:04.8]} 35... e5 {[%clk 0:03:45]} 36. Nb3
{[%clk 0:04:01.9]} 36... Rxc6 {[%clk 0:03:44]} 37. Nd2 {[%clk 0:04:01.8]} 37...
a5 {[%clk 0:03:42.8]} 38. Nf1 {[%clk 0:04:01.7]} 38... a4 {[%clk 0:03:41.5]} 39.
Ne3 {[%clk 0:04:01.6]} 39... a3 {[%clk 0:03:40.1]} 40. Nd1 {[%clk 0:04:01.5]}
40... a2 {[%clk 0:03:36.4]} 41. Nb2 {[%clk 0:04:01.4]} 41... a1=Q {[%clk
0:03:35.3]} 42. Nd3 {[%clk 0:04:01.3]} 42... e4+ {[%clk 0:03:33.9]} 43. Kg3
{[%clk 0:04:01.1]} 43... exd3 {[%clk 0:03:32.8]} 44. Kh4 {[%clk 0:04:01]} 44...
Qf6+ {[%clk 0:03:31.2]} 45. Kh3 {[%clk 0:04:00.9]} 45... d2 {[%clk 0:03:29.9]}
46. g3 {[%clk 0:04:00.8]} 46... d1=Q {[%clk 0:03:28.9]} 47. Kg2 {[%clk
0:04:00.7]} 47... Rc3 {[%clk 0:03:26.2]} 48. f4 {[%clk 0:04:00.6]} 48... Qe2+
{[%clk 0:03:24.7]} 49. Kh1 {[%clk 0:04:00.4]} 49... Rc1# {[%clk 0:03:23.2]} 0-1

[Event "Live Chess"]
[Site "Chess.com"]
[Date "2023.05.20"]
[Round "-"]
[White "JamesWallman"]
[Black "Outspanner"]
[Result "0-1"]
[WhiteElo "794"]
[BlackElo "1579"]
[TimeControl "300"]
[EndTime "9:20:02 PDT"]
[Termination "Outspanner won on time"]

1. e4 {[%clk 0:04:56.4]} 1... d6 {[%clk 0:04:56.9]} 2. d4 {[%clk 0:04:53.7]}
2... Nf6 {[%clk 0:04:55.9]} 3. Nc3 {[%clk 0:04:50.1]} 3... Nbd7 {[%clk
0:04:55.3]} 4. Nf3 {[%clk 0:04:46.4]} 4... e5 {[%clk 0:04:54.7]} 5. d5 {[%clk
0:04:43.7]} 5... c6 {[%clk 0:04:47.6]} 6. Bc4 {[%clk 0:04:38.7]} 6... Be7 {[%clk
0:04:36.1]} 7. Be3 {[%clk 0:04:34.9]} 7... Ng4 {[%clk 0:04:21.5]} 8. O-O {[%clk
0:04:31.2]} 8... Nxe3 {[%clk 0:04:20]} 9. fxe3 {[%clk 0:04:28.8]} 9... c5 {[%clk
0:04:05.1]} 10. h3 {[%clk 0:04:23.9]} 10... O-O {[%clk 0:04:03.3]} 11. Nh2
{[%clk 0:04:21.3]} 11... a6 {[%clk 0:04:02.6]} 12. Ng4 {[%clk 0:04:13.4]} 12...
b5 {[%clk 0:03:57.5]} 13. Be2 {[%clk 0:04:07]} 13... Bg5 {[%clk 0:03:30.7]} 14.
Rf3 {[%clk 0:03:57]} 14... Nf6 {[%clk 0:03:25.6]} 15. Nxf6+ {[%clk 0:03:44.4]}
15... Bxf6 {[%clk 0:03:25.5]} 16. Qe1 {[%clk 0:03:36.5]} 16... Bh4 {[%clk
0:03:21.7]} 17. Qf1 {[%clk 0:03:33.8]} 17... Qg5 {[%clk 0:03:15.4]} 18. a3
{[%clk 0:03:02.9]} 18... f5 {[%clk 0:03:10.1]} 19. exf5 {[%clk 0:02:56.7]} 19...
Bxf5 {[%clk 0:03:07.7]} 20. Bd3 {[%clk 0:02:42.6]} 20... Bxd3 {[%clk 0:02:53.2]}
21. Qxd3 {[%clk 0:02:32]} 21... Rxf3 {[%clk 0:02:49.4]} 22. Rf1 {[%clk
0:02:21.4]} 22... Rxf1+ {[%clk 0:02:38.3]} 23. Qxf1 {[%clk 0:02:16.3]} 23... Rf8
{[%clk 0:02:38.2]} 24. Qe2 {[%clk 0:02:09]} 24... Ra8 {[%clk 0:02:38.1]} 25. Ne4
{[%clk 0:02:02.9]} 25... Qxe3+ {[%clk 0:02:38]} 26. Qxe3 {[%clk 0:01:59.7]}
26... Rf8 {[%clk 0:02:33.4]} 27. Nxd6 {[%clk 0:01:42.7]} 27... Bf6 {[%clk
0:01:44.7]} 28. Nf5 {[%clk 0:01:33.5]} 28... Rd8 {[%clk 0:01:40.3]} 29. Qf3
{[%clk 0:01:26.6]} 29... Re8 {[%clk 0:01:28.7]} 30. d6 {[%clk 0:01:20.1]} 30...
e4 {[%clk 0:01:25.7]} 31. Qg3 {[%clk 0:01:00]} 31... g6 {[%clk 0:01:18.7]} 32.
Nh6+ {[%clk 0:00:41.2]} 32... Kg7 {[%clk 0:01:14.1]} 33. Nf5+ {[%clk 0:00:38.3]}
33... Kg8 {[%clk 0:01:12.4]} 34. Qe3 {[%clk 0:00:22.7]} 34... gxf5 {[%clk
0:01:05.9]} 35. Qg3+ {[%clk 0:00:19.3]} 35... Kf7 {[%clk 0:01:02.1]} 36. Qf4
{[%clk 0:00:13.4]} 36... e3 {[%clk 0:00:57.8]} 37. Qf1 {[%clk 0:00:08.2]} 37...
e2 {[%clk 0:00:55.9]} 38. Qe1 {[%clk 0:00:06.6]} 38... Bh4 {[%clk 0:00:48.4]}
39. Qxh4 {[%clk 0:00:04]} 39... e1=Q+ {[%clk 0:00:47.2]} 40. Qxe1 {[%clk
0:00:02]} 40... Rxe1+ {[%clk 0:00:46.8]} 0-1

[Event "Live Chess"]
[Site "Chess.com"]
[Date "2023.05.20"]
[Round "-"]
[White "CocheseUK"]
[Black "HoarseyHorsey"]
[Result "0-1"]
[WhiteElo "1170"]
[BlackElo "1393"]
[TimeControl "300"]
[EndTime "9:20:03 PDT"]
[Termination "HoarseyHorsey won by resignation"]

1. e4 {[%clk 0:04:56.1]} 1... c5 {[%clk 0:04:58.3]} 2. Nf3 {[%clk 0:04:53.6]}
2... e6 {[%clk 0:04:57.1]} 3. Bc4 {[%clk 0:04:49.8]} 3... d5 {[%clk 0:04:55.7]}
4. exd5 {[%clk 0:04:48.1]} 4... exd5 {[%clk 0:04:55.6]} 5. Be2 {[%clk
0:04:44.6]} 5... Nf6 {[%clk 0:04:54]} 6. O-O {[%clk 0:04:42.6]} 6... Bd6 {[%clk
0:04:52.3]} 7. d4 {[%clk 0:04:37.6]} 7... O-O {[%clk 0:04:50.4]} 8. dxc5 {[%clk
0:04:35.1]} 8... Bxc5 {[%clk 0:04:49.4]} 9. Nc3 {[%clk 0:04:23.7]} 9... Nc6
{[%clk 0:04:46.2]} 10. a3 {[%clk 0:04:14.5]} 10... Re8 {[%clk 0:04:44.5]} 11. b4
{[%clk 0:04:11.5]} 11... Bb6 {[%clk 0:04:41.9]} 12. Be3 {[%clk 0:04:03.4]} 12...
d4 {[%clk 0:04:38.7]} 13. Bxd4 {[%clk 0:03:57.1]} 13... Nxd4 {[%clk 0:04:37.6]}
14. Nxd4 {[%clk 0:03:55.4]} 14... Bxd4 {[%clk 0:04:36.6]} 15. Qe1 {[%clk
0:03:34.2]} 15... Bxc3 {[%clk 0:04:29.5]} 16. Qxc3 {[%clk 0:03:30.6]} 16... Rxe2
{[%clk 0:04:28.3]} 17. Rae1 {[%clk 0:03:25.9]} 17... Qe7 {[%clk 0:04:24.5]} 18.
Rxe2 {[%clk 0:03:21]} 18... Qxe2 {[%clk 0:04:23.1]} 19. Re1 {[%clk 0:03:19.7]}
19... Qb5 {[%clk 0:04:14.2]} 20. Qf3 {[%clk 0:02:52.8]} 20... Be6 {[%clk
0:04:08.2]} 21. Qe3 {[%clk 0:02:11.3]} 21... a6 {[%clk 0:03:50.3]} 22. Qc5
{[%clk 0:02:07.1]} 22... Qxc5 {[%clk 0:03:47.8]} 23. bxc5 {[%clk 0:02:06]} 23...
Rc8 {[%clk 0:03:46.6]} 24. Re5 {[%clk 0:02:03.4]} 24... Nd7 {[%clk 0:03:41.3]}
25. Rg5 {[%clk 0:01:42]} 25... Rxc5 {[%clk 0:03:37.1]} 26. Rxc5 {[%clk
0:01:39.7]} 26... Nxc5 {[%clk 0:03:35.9]} 27. c3 {[%clk 0:01:37.5]} 27... Bc4
{[%clk 0:03:33.8]} 28. f3 {[%clk 0:01:35.4]} 28... Na4 {[%clk 0:03:33]} 29. Kf2
{[%clk 0:01:32.6]} 29... Nxc3 {[%clk 0:03:32.2]} 30. Ke3 {[%clk 0:01:29.7]}
30... Nb5 {[%clk 0:03:30.2]} 31. g4 {[%clk 0:01:24.3]} 31... Kf8 {[%clk
0:03:27.9]} 32. h4 {[%clk 0:01:21.7]} 32... Ke7 {[%clk 0:03:27.1]} 0-1

[Event "Live Chess"]
[Site "Chess.com"]
[Date "2023.05.20"]
[Round "-"]
[White "Inaffectual"]
[Black "Greenbecker"]
[Result "0-1"]
[WhiteElo "561"]
[BlackElo "1697"]
[TimeControl "300"]
[EndTime "9:20:04 PDT"]
[Termination "Greenbecker won by checkmate"]

1. e4 {[%clk 0:04:57.7]} 1... e6 {[%clk 0:04:58.7]} 2. Nc3 {[%clk 0:04:55.7]}
2... d5 {[%clk 0:04:57.4]} 3. f4 {[%clk 0:04:53.3]} 3... Nf6 {[%clk 0:04:52.3]}
4. e5 {[%clk 0:04:51.2]} 4... Nfd7 {[%clk 0:04:51.4]} 5. Bb5 {[%clk 0:04:46]}
5... a6 {[%clk 0:04:44.9]} 6. Ba4 {[%clk 0:04:44.3]} 6... b5 {[%clk 0:04:43.8]}
7. Bb3 {[%clk 0:04:42]} 7... c5 {[%clk 0:04:42.8]} 8. d3 {[%clk 0:04:36.2]} 8...
Bb7 {[%clk 0:04:39.5]} 9. f5 {[%clk 0:04:27.6]} 9... Nxe5 {[%clk 0:04:31.4]} 10.
fxe6 {[%clk 0:04:20.7]} 10... fxe6 {[%clk 0:04:16.1]} 11. Qh5+ {[%clk
0:04:13.9]} 11... Ng6 {[%clk 0:04:13.5]} 12. Bg5 {[%clk 0:04:06.5]} 12... Be7
{[%clk 0:04:08.9]} 13. O-O-O {[%clk 0:03:58.2]} 13... Bxg5+ {[%clk 0:04:06.8]}
14. Kb1 {[%clk 0:03:51.6]} 14... Bf6 {[%clk 0:03:58.3]} 15. Re1 {[%clk
0:03:45.3]} 15... Qd7 {[%clk 0:03:48.4]} 16. Nf3 {[%clk 0:03:35.2]} 16... O-O
{[%clk 0:03:38.9]} 17. Rhf1 {[%clk 0:03:20.9]} 17... c4 {[%clk 0:03:34.4]} 18.
dxc4 {[%clk 0:03:18.1]} 18... dxc4 {[%clk 0:03:33.6]} 19. Rd1 {[%clk 0:03:11.9]}
19... Qe7 {[%clk 0:03:27.6]} 20. Ng5 {[%clk 0:02:55.3]} 20... Bxg5 {[%clk
0:03:20.2]} 21. Rxf8+ {[%clk 0:02:52.4]} 21... Nxf8 {[%clk 0:03:15]} 22. Ne4
{[%clk 0:02:43.1]} 22... Bxe4 {[%clk 0:03:10]} 23. Bxc4 {[%clk 0:02:37.4]} 23...
bxc4 {[%clk 0:03:06.8]} 24. Re1 {[%clk 0:02:24.1]} 24... Bg6 {[%clk 0:03:00.1]}
25. Qe2 {[%clk 0:02:08]} 25... Nbd7 {[%clk 0:02:44.1]} 26. Qf3 {[%clk 0:01:54]}
26... Rb8 {[%clk 0:02:25.8]} 27. a3 {[%clk 0:01:40.9]} 27... Bf6 {[%clk
0:02:20.1]} 28. Qc6 {[%clk 0:01:26.7]} 28... Rxb2+ {[%clk 0:02:13.8]} 29. Kc1
{[%clk 0:01:23.9]} 29... Rxc2+ {[%clk 0:02:11.8]} 30. Kb1 {[%clk 0:01:21.6]}
30... Qxa3 {[%clk 0:02:01]} 31. Rxe6 {[%clk 0:01:02.1]} 31... Qb2# {[%clk
0:01:58.2]} 0-1

[Event "Live Chess"]
[Site "Chess.com"]
[Date "2023.05.20"]
[Round "-"]
[White "MaximKhimchenko"]
[Black "VIDYUTGANESH"]
[Result "1-0"]
[WhiteElo "1378"]
[BlackElo "1659"]
[TimeControl "300"]
[EndTime "9:20:18 PDT"]
[Termination "MaximKhimchenko won by resignation"]

1. e4 {[%clk 0:04:57.6]} 1... e6 {[%clk 0:04:58.7]} 2. Nf3 {[%clk 0:04:57.5]}
2... Ne7 {[%clk 0:04:58.3]} 3. d4 {[%clk 0:04:57.2]} 3... g6 {[%clk 0:04:58.2]}
4. d5 {[%clk 0:04:56.6]} 4... Bg7 {[%clk 0:04:58.1]} 5. d6 {[%clk 0:04:56.4]}
5... cxd6 {[%clk 0:04:56.8]} 6. Qxd6 {[%clk 0:04:55.1]} 6... O-O {[%clk
0:04:56.2]} 7. Bg5 {[%clk 0:04:54.7]} 7... f6 {[%clk 0:04:54.9]} 8. Bd2 {[%clk
0:04:51.7]} 8... Nbc6 {[%clk 0:04:54.4]} 9. Nc3 {[%clk 0:04:48.7]} 9... f5
{[%clk 0:04:49.1]} 10. O-O-O {[%clk 0:04:39.7]} 10... fxe4 {[%clk 0:04:46.5]}
11. Nxe4 {[%clk 0:04:37.2]} 11... Nf5 {[%clk 0:04:46]} 12. Qa3 {[%clk
0:04:34.3]} 12... d5 {[%clk 0:04:36.5]} 13. Nc5 {[%clk 0:04:29.2]} 13... b6
{[%clk 0:04:24.9]} 14. Nb3 {[%clk 0:04:23]} 14... a5 {[%clk 0:04:14.4]} 15. Bb5
{[%clk 0:04:20.5]} 15... Ne5 {[%clk 0:04:09.8]} 16. Nxe5 {[%clk 0:04:15.1]}
16... Bxe5 {[%clk 0:04:09.7]} 17. f4 {[%clk 0:04:12.6]} 17... Bd6 {[%clk
0:04:08.4]} 18. Qa4 {[%clk 0:04:09.4]} 18... Ba6 {[%clk 0:03:58.8]} 19. Bxa6
{[%clk 0:04:04.9]} 19... Rxa6 {[%clk 0:03:58.7]} 20. Nd4 {[%clk 0:04:04.4]}
20... Nxd4 {[%clk 0:03:51.8]} 21. Qxd4 {[%clk 0:04:04.3]} 21... Ra7 {[%clk
0:03:45.2]} 22. Bc3 {[%clk 0:03:59.8]} 22... Kf7 {[%clk 0:03:31.4]} 23. Qg7+
{[%clk 0:03:56.4]} 1-0

[Event "Live Chess"]
[Site "Chess.com"]
[Date "2023.05.20"]
[Round "-"]
[White "TDCMF"]
[Black "AwesomeFredster"]
[Result "0-1"]
[WhiteElo "340"]
[BlackElo "1638"]
[TimeControl "300"]
[EndTime "9:20:21 PDT"]
[Termination "AwesomeFredster won by checkmate"]

1. e4 {[%clk 0:04:56.1]} 1... e5 {[%clk 0:04:58.8]} 2. Nf3 {[%clk 0:04:53]} 2...
Nc6 {[%clk 0:04:57.9]} 3. Bc4 {[%clk 0:04:48.8]} 3... Nd4 {[%clk 0:04:56.4]} 4.
Nxd4 {[%clk 0:04:36.9]} 4... exd4 {[%clk 0:04:55.3]} 5. d3 {[%clk 0:04:30.7]}
5... Bb4+ {[%clk 0:04:51]} 6. c3 {[%clk 0:04:24.3]} 6... dxc3 {[%clk 0:04:49.7]}
7. bxc3 {[%clk 0:04:23.5]} 7... Ba5 {[%clk 0:04:48.5]} 8. Bf4 {[%clk 0:04:20.5]}
8... Qf6 {[%clk 0:04:38.5]} 9. Qf3 {[%clk 0:04:10]} 9... Bxc3+ {[%clk
0:04:29.8]} 10. Nxc3 {[%clk 0:04:08.7]} 10... Qxc3+ {[%clk 0:04:28.5]} 11. Kd1
{[%clk 0:04:07.6]} 11... Qxa1+ {[%clk 0:04:27.4]} 12. Ke2 {[%clk 0:04:05.7]}
12... Qxh1 {[%clk 0:04:24.9]} 13. Ke3 {[%clk 0:04:01.3]} 13... Qe1+ {[%clk
0:04:22.6]} 14. Qe2 {[%clk 0:03:57.4]} 14... Qxe2+ {[%clk 0:04:21.5]} 15. Kxe2
{[%clk 0:03:56.6]} 15... Nf6 {[%clk 0:04:21.1]} 16. e5 {[%clk 0:03:54.5]} 16...
Nh5 {[%clk 0:04:18.2]} 17. Bg5 {[%clk 0:03:46.3]} 17... g6 {[%clk 0:04:08.2]}
18. g4 {[%clk 0:03:32.1]} 18... Ng7 {[%clk 0:04:06.7]} 19. Bf6 {[%clk
0:03:28.2]} 19... O-O {[%clk 0:04:05]} 20. f4 {[%clk 0:03:16.6]} 20... Re8
{[%clk 0:03:59.4]} 21. d4 {[%clk 0:03:08.1]} 21... d6 {[%clk 0:03:56.7]} 22. Bd5
{[%clk 0:02:50.6]} 22... c6 {[%clk 0:03:53.3]} 23. Bxf7+ {[%clk 0:02:44.2]}
23... Kxf7 {[%clk 0:03:49.9]} 24. g5 {[%clk 0:02:39.1]} 24... Bg4+ {[%clk
0:03:47]} 25. Ke3 {[%clk 0:02:35.3]} 25... Nf5+ {[%clk 0:03:46.3]} 26. Ke4
{[%clk 0:02:31.7]} 26... d5+ {[%clk 0:03:45.6]} 27. Kd3 {[%clk 0:02:28.8]} 27...
h5 {[%clk 0:03:31.9]} 28. h3 {[%clk 0:02:26.6]} 28... Bxh3 {[%clk 0:03:29.8]}
29. e6+ {[%clk 0:02:07.5]} 29... Kxe6 {[%clk 0:03:27.7]} 30. Ke2 {[%clk
0:01:48.6]} 30... Bg2 {[%clk 0:03:24.7]} 31. Kf2 {[%clk 0:01:46.8]} 31... Be4
{[%clk 0:03:23.2]} 32. a4 {[%clk 0:01:42.2]} 32... h4 {[%clk 0:03:22.3]} 33. Kg1
{[%clk 0:01:37.5]} 33... Rec8 {[%clk 0:03:15]} 34. Kh2 {[%clk 0:01:31.3]} 34...
Rc7 {[%clk 0:03:14.2]} 35. Kh3 {[%clk 0:01:27.2]} 35... Rh7 {[%clk 0:03:12.4]}
36. a5 {[%clk 0:01:23.5]} 36... a6 {[%clk 0:03:10.9]} 37. Be5 {[%clk 0:01:14.6]}
37... Rc8 {[%clk 0:02:56.6]} 38. Kg4 {[%clk 0:01:08.8]} 38... h3 {[%clk
0:02:53.8]} 39. Bg7 {[%clk 0:01:02.6]} 39... h2 {[%clk 0:02:47.1]} 40. Bh6
{[%clk 0:01:00]} 40... h1=Q {[%clk 0:02:40.4]} 41. Bf8 {[%clk 0:00:53.3]} 41...
Qg2# {[%clk 0:02:39.4]} 0-1